Cogmind - Beta 13 @@@ ROGUE MODE // 2024.04.08 @ 18:31:19 Player: kucifra Result: Self-destructed Performance ------------- Evolutions (1) 500 Regions Visited (2) 400 Robots Destroyed (16) 80 Value Destroyed (313) 313 Prototype IDs (0) 0 Alien Tech Used (0) 0 Bonus (0) 0 TOTAL SCORE: 1293 Bonus ------- None Cogmind --------- Core Integrity 332/400 Matter 1/300 Energy 249/250 System Corruption 0% Temperature Cool (2) Movement Flying (37) Location -9/Materials Parts ------- > --- POWER (1) -------- Ion Engine > --- PROPULSION (2) --- Flight Unit Flight Unit > --- UTILITY (4) ------ Structural Scanner Sensor Array Signal Interpreter Recalibrator > --- WEAPON (2) ------- (None) > --- INVENTORY (5) ---- Propulsion Shielding Rocket Launcher Rocket Launcher Hammer Peak State ------------ > --- POWER ------------ Ion Engine > --- PROPULSION ------- Flight Unit Flight Unit > --- UTILITY ---------- Structural Scanner Sensor Array Signal Interpreter Recalibrator > --- WEAPON ----------- Rocket Launcher Rocket Launcher > --- INVENTORY -------- Propulsion Shielding Hammer [Rating: 14] Favorites ----------- Power Ion Engine Engine Ion Engine Propulsion Light Treads Treads Light Treads Leg Aluminum Leg Flight Unit Flight Unit Utility Large Storage Unit Device Recalibrator Storage Large Storage Unit Processor Signal Interpreter Protection Propulsion Shielding Weapon Light Cannon Energy Gun EM Pulse Gun Ballistic Gun Light Assault Rifle Ballistic Cannon Light Cannon Launcher Grenade Launcher Impact Weapon Hammer Build | -11 -10 -9 ------- Run | Yrd Mat Mat Slots Evolved 2 | . . 2 Power . | . . . Propulsion . | . . . Utility 2 | . . 2 Weapon . | . . . Parts Attached 41 | 6 30 5 Power 6 | 1 5 . Engine 6 | 1 5 . Core . | . . . Reactor . | . . . Propulsion 9 | 2 7 . Treads 6 | 2 4 . Leg 1 | . 1 . Wheel . | . . . Hover . | . . . Flight 2 | . 2 . Utility 12 | 1 8 3 Device 5 | . 4 1 Storage 4 | 1 3 . Processor 1 | . . 1 Hackware . | . . . Protection 2 | . 1 1 Artifact . | . . . Weapon 14 | 2 10 2 Energy Gun 1 | 1 . . Energy Cannon . | . . . Ballistic Gun 4 | 1 3 . Ballistic Cannon 3 | . 3 . Launcher 5 | . 3 2 Special Weapon . | . . . Impact Weapon 1 | . 1 . Slashing Weapon . | . . . Piercing Weapon . | . . . Special Melee Weapon . | . . . Unidentified Prototypes . | . . . Parts Lost 6 | . 6 . Power 3 | . 3 . Propulsion 2 | . 2 . Utility . | . . . Weapon 1 | . 1 . Highest Loss Streak 2 | . 2 . To Critical Strikes . | . . . Average Slot Usage (%) 83 | . 83 77 Engine 13 | . 13 11 Treads 20 | . 21 . Flight 1 | . . 22 Device 8 | . 7 33 Storage 13 | . 13 . Ballistic Gun 8 | . 9 . Ballistic Cannon 10 | . 10 . Launcher 1 | . 1 . Impact Weapon 1 | . 1 . Naked Turns . | . . . Heaviest Build 34 | 13 34 8 Greatest Support 40 | 40 40 8 Greatest Overweight (x) 11 | . 11 . Average Overweight (x) . | . . . Largest Inventory Capacity 20 | 8 20 5 Average Capacity 13 | 6 14 5 Most Carried 12 | 1 12 4 Average Carried 7 | . 7 3 Final Capacity 8 | 8 5 5 Final Carried 5 | 1 5 4 Class Distribution -------------------- 100% | Mutant Dominant Class ---------------- Mutant | -10/Materials Mutant | -9/Materials Resources | -11 -10 -9 ----------- Run | Yrd Mat Mat Matter Collected 609 | 226 383 . Remotely . | . . . Salvage Created 380 | . 380 . Parts 25 | . 25 . Haulers Intercepted . | . . . Recyclers Shooed 1 | . 1 . Parts Field Recycled . | . . . Retrieved Matter . | . . . Parts Self-Destructed . | . . . Prevented . | . . . Kills | -11 -10 -9 ------- Run | Yrd Mat Mat Combat Hostiles Destroyed 9 | . 9 . Guns 1 | . 1 . Cannons 6 | . 6 . AOE 2 | . 2 . Classes Destroyed 7 | . 7 . Worker 1 | . 1 . Builder 2 | . 2 . Tunneler 1 | . 1 . Recycler 2 | . 2 . Mechanic 1 | . 1 . Swarmer 3 | . 3 . Grunt 6 | . 6 . Best Kill Streak 3 | . 3 . Combat Bots Only 3 | . 3 . Max Kills in Single Turn 2 | . 2 . Gunslinging . | . . . Exploded 1 | . 1 . Melee . | . . . Uniques/NPCs Destroyed . | . . . Combat | -11 -10 -9 -------- Run | Yrd Mat Mat Hostile Shots Fired 80 | . 64 16 Missed 20 | . 14 6 Damage Taken 771 | . 639 132 Core 178 | . 110 68 Absorbed by Shields . | . . . Core Remaining (%) 78 | 100 56 . Volleys Fired 58 | . 56 2 Largest 2 | . 2 2 Hottest 66 | . 55 66 Shots Fired 93 | . 89 4 Gun 36 | . 36 . Cannon 47 | . 47 . Launcher 10 | . 6 4 Special . | . . . Kinetic 83 | . 83 . Thermal . | . . . Explosive 10 | . 6 4 Electromagnetic . | . . . Robot Hit Streak 11 | . 11 1 Robot Miss Streak 4 | . 4 2 Penetration Max . | . . . Secondary Targets . | . . . Shots Hit Robots 54 | . 53 1 Core Hits 26 | . 26 . Critical Kills 2 | . 2 . Critical Parts Destroyed . | . . . Critical Strikes 4 | . 4 . Destroy 2 | . 2 . Blast 2 | . 2 . Melee Attacks 2 | . 2 . Impact 2 | . 2 . Slashing . | . . . Piercing . | . . . Sneak Attacks . | . . . Combat Hostiles . | . . . Follow-up Attacks . | . . . Damage Inflicted 1085 | . 960 125 Guns 167 | . 167 . Cannons 519 | . 519 . Explosions 364 | . 239 125 Melee 21 | . 21 . Ramming 14 | . 14 . Kinetic 686 | . 686 . Thermal . | . . . Explosive 364 | . 239 125 Electromagnetic . | . . . Impact 21 | . 21 . Slashing . | . . . Piercing . | . . . Highest Corruption . | . . . Average Corruption . | . . . Corruption Purged . | . . . Corruption Blocked . | . . . Overload Shots . | . . . Overflow Damage 11 | . 11 . Projectiles . | . . . Explosions 11 | . 11 . Melee . | . . . Knockbacks 9 | . 9 . Impact 1 | . 1 . Kinetic 8 | . 8 . Secondary . | . . . Self-Inflicted Damage 63 | . 63 . Shots 2 | . 2 . Rammed 1 | . 1 . Targets Rammed 1 | . 1 . Kicked . | . . . Crushed . | . . . Highest Temperature 94 | . 94 27 Average Temperature 32 | . 33 15 Received Heat Transfer 315 | . 255 60 Siege Activations . | . . . Robots Corrupted . | . . . Combat Hostiles . | . . . Parts Fried . | . . . Impact Corruptions 1 | . 1 . Robots Melted . | . . . Combat Hostiles . | . . . Parts Melted . | . . . Heat Transferred . | . . . Parts Sabotaged . | . . . Parts Stolen . | . . . Parts Stripped . | . . . Power Chain Reactions . | . . . Alert | -11 -10 -9 ------- Run | Yrd Mat Mat Peak Influence 100 | . 100 99 Initial 35 | . . 35 Average 40 | . 42 60 Maximum Alert Level . | . . . Low Security (%) 100 | 100 100 100 Level 1 . | . . . Level 2 . | . . . Level 3 . | . . . Level 4 . | . . . Level 5 . | . . . High Security . | . . . Max Security . | . . . Squads Dispatched 1 | . 1 . Investigation . | . . . Extermination . | . . . Reinforcement 1 | . 1 . Assault . | . . . Garrison . | . . . Intercept . | . . . Searches Triggered . | . . . Construction Impeded . | . . . Haulers Reinforced . | . . . Active Scanning Responses . | . . . Cargo Convoy Interrupts . | . . . Stealth | -11 -10 -9 --------- Run | Yrd Mat Mat Distress Signals 1 | . 1 . Communications Jammed . | . . . Distress Signals . | . . . Times Spotted 20 | . 15 5 Peak Tracking Total 6 | . 6 3 Tactical Retreats . | . . . Traps | -11 -10 -9 ------- Run | Yrd Mat Mat Traps Triggered 4 | . 4 . Indirectly . | . . . Trap Hack Attempts . | . . . Triggered . | . . . Disarmed . | . . . Reprogrammed . | . . . Reused . | . . . Traps Extracted . | . . . Installed . | . . . Triggered . | . . . Machines | -11 -10 -9 ---------- Run | Yrd Mat Mat Machines Disabled 1 | . 1 . Max in Single Turn 1 | . 1 . Machines Repaired . | . . . Machines Dismantled . | . . . Machines Sabotaged . | . . . Overloaded Fab Kills . | . . . Hacking | -11 -10 -9 --------- Run | Yrd Mat Mat Machines Accessed 4 | . 3 1 Terminals 3 | . 2 1 Fabricators . | . . . Repair Stations . | . . . Recycling Units 1 | . 1 . Scanalyzers . | . . . Garrison Access . | . . . Total Hacks 8 | . 6 2 Successful 2 | . 1 1 Failed 6 | . 5 1 Catastrophic 4 | . 4 . Database Lockouts . | . . . Manual 2 | . 2 . Terminals 7 | . 5 2 Fabricators . | . . . Repair Stations . | . . . Recycling Units 1 | . 1 . Scanalyzers . | . . . Garrison Access . | . . . Terminal Hacks 2 | . 1 1 Record 1 | . 1 . Emergency Access Points 1 | . . 1 Fabricator Hacks . | . . . Repair Station Hacks . | . . . Recycling Unit Hacks . | . . . Scanalyzer . | . . . Garrison Access Hacks . | . . . Unauthorized Hacks . | . . . Terminals . | . . . Fabricators . | . . . Repair Stations . | . . . Recycling Units . | . . . Scanalyzers . | . . . Garrison Access . | . . . Data Cores Recovered . | . . . Used . | . . . Hacking Detections 4 | . 3 1 Full Trace Events 1 | . 1 . Feedback Events . | . . . Feedback Blocked . | . . . Robot Schematics Acquired . | . . . Robots Built . | . . . Authchips . | . . . Time . | . . . Total Robot Build Rating . | . . . Part Schematics Acquired . | . . . Parts Built . | . . . Authchips . | . . . Time . | . . . Total Part Build Rating . | . . . Parts Repaired . | . . . Time . | . . . Parts Recycled . | . . . Recycled Matter . | . . . Retrieved Matter . | . . . Retrieved Components . | . . . Parts Scanalyzed . | . . . Part Schematics Acquired . | . . . Parts Damaged . | . . . Bothacking | -11 -10 -9 ------------ Run | Yrd Mat Mat Used RIF Installer . | . . . Robots Hacked . | . . . Non-combat . | . . . Combat . | . . . Robot Hacks Applied . | . . . Relay Couplers Released . | . . . Fabnet Peak Effective % . | . . . Robots Rewired . | . . . Allies Hacked . | . . . Hacks Repelled . | . . . Allies | -11 -10 -9 -------- Run | Yrd Mat Mat Total Allies . | . . . Largest Group . | . . . Highest-Rated Group . | . . . Highest-Rated Ally . | . . . Total Orders . | . . . Ally Attacks . | . . . Total Damage . | . . . Kills . | . . . Allies Corrupted . | . . . Allies Melted . | . . . Intel | -11 -10 -9 ------- Run | Yrd Mat Mat Robot Analysis Total . | . . . Derelict Logs Recovered . | . . . Drone Launches . | . . . Drone Recoveries . | . . . Exploration | -11 -10 -9 ------------- Run | Yrd Mat Mat Turns Passed 1042 | 76 933 33 Spaces Moved 480 | 44 383 53 Core 14 | 3 11 . Treads 394 | 41 353 . Legs 7 | . 7 . Wheels . | . . . Hover . | . . . Flight 65 | . 12 53 Fastest Speed 37 | 50 37 37 Average Speed 161 | 152 180 37 Slowest Speed 600 | 160 600 37 Overloaded Moves . | . . . Propulsion Burnouts . | . . . Robots Hopped . | . . . Cave-ins Triggered . | . . . Exploration Rate (%) 24 | 4 61 7 Regions Visited 2 Branch Regions . Pre-discovered Areas . | . . . Known Exits Taken . | . . . Unknown Exits Taken 2 | 1 1 . Scrap Searched . | . . . Spaces Dug . | . . . Terrain Destroyed 71 | . 34 37 Melee . | . . . Projectile . | . . . AOE 71 | . 34 37 Terrain Rammed . | . . . Walls Destroyed . | . . . Machines Disabled . | . . . Actions | -11 -10 -9 --------- Run | Yrd Mat Mat Total 654 | 50 541 63 Wait 30 | . 30 . Move 478 | 43 382 53 Hop . | . . . Pick Up 21 | 1 20 . Fast Attach 18 | 6 11 1 Attach 17 | . 13 4 Detach 11 | . 8 3 Swap 6 | . 6 . Drop 12 | . 12 . Fire 58 | . 56 2 Melee 2 | . 2 . Ram . | . . . Kick . | . . . Crush 1 | . 1 . Escape Stasis . | . . . Rewire . | . . . Trap . | . . . Miscellaneous . | . . . Route ------- -11/Scrapyard -10/Materials (discovered 2 exits: *Mat x2) -9/Materials History --------- Turn | Location | Event 35 | -11/Scrapyard | Discovered new exit (range 16) 77 | -11/Scrapyard | Entered Materials 340 | -10/Materials | Build established: Mutant 702 | -10/Materials | Discovered new exit (range 16) 927 | -10/Materials | Discovered new exit (range 10) 1010 | -10/Materials | Entered another Materials area 1010 | -9/Materials | Evolved 2 slots: Utility x2 1043 | -9/Materials | Self-destructed Last Messages --------------- T-07 Excavator destroyed. K-01 Serf collects debris. U-05 Engineer lays Concrete. U-05 Engineer builds a Wall. K-01 Serf collects debris. U-05 Engineer lays Concrete. The unstable cave ceiling collapses. PARAMETERS=UTILITY+2 LOCATION=UNKNOWN GOAL=ESCAPE Acquired Signal Interpreter. Connecting with Terminal... Current location identified: Materials >>Access(Emergency) Found 1 emergency access door: (88,26) Map updated. C-30 ARC bursts open, deploying its payload. G-47 Trooper unfolds itself. G-34 Mercenary unfolds itself. Map ----- +----------------------------------------------------+ | ??????????????????????????????????????????????? | | ??????????????????????????????????????????????? | | ??????????????????????????????????????????????? | | ??????????????????????????????????????????????? | | ????????????????????????????#######???????????? | | ????????????????????????????#######???????????? | | ????????????????????????????## ##???????????? | | ????????????????????????????## ##???????????? | | ????????????????????????????## ##???????????? | | ????????????????????????????## ##???????????? | | ????????????????????????????## ##???????????? | | ????????????????????????????## #########????? | | ????????????????????????????## #########????? | | ????????????????????????????## # ##????? | | ????????????????????????????## # ##????? | | ????????????????????????????## # """ ##????? | | ????????????????????????????## + """ ##????? | | ???????????????????????????### # """ ##????? | | ??????????????????????????#### #####?? | | ????????????????? # ??????### #+#########?? | | ????????????????? # ??????## g ##?? | | ??????????######### ???#### """"" ##?? | | ?????????? ######## ####### g ""T"" ##?? | | ?????????? ### % ##?? | | ?????????? """ """ ##?? | | ?????????? gg @ Y """ """ ##?? | | ????????????###### """ """ ##?? | | ????????????###### #### ##?? | | ????????????????### ###### ##########?? | | ???????????????? # # ? ## ##########?? | | ????????????????? # ?????? #####?????????? | | ????????????????? # ???????" # ####?????????? | | ????????????????? # ???????" ## ###???????????? | | ????????????????? # ??????"" ## ###???????????? | | ?????????????????????????? ## ##????????????? | | ??????????????????????????##### ##????????????? | | ??????????????????????????##### ##????????????? | | ??????????????????????????????? ##????????????? | | ??????????????????????????????????????????????? | | ??????????????????????????????????????????????? | | ??????????????????????????????????????????????? | | ??????????????????????????????????????????????? | | ??????????????????????????????????????????????? | | ??????????????????????????????????????????????? | | ??????????????????????????????????????????????? | | ??????????????????????????????????????????????? | | ??????????????????????????????????????????????? | | ??????????????????????????????????????????????? | | ??????????????????????????????????????????????? | | ??????????????????????????????????????????????? | +----------------------------------------------------+ Best States ------------- Heat Dissipation 28 Energy Generation 10 Energy Capacity 250 Matter Stores 283 Matter Capacity 300 Sight Range 16 Robot Scan Range 14 Terrain Scan Density 10 Propulsion Shielding 33 Evasion (%) 62 Recoil Reduction 2 Item Schematics ----------------- None Robot Schematics ------------------ None Fabricated ------------ Nothing Alien Tech Used ----------------- None Achievements -------------- None Challenges ------------ None Game ------ Seed ThermoelectricTimingCharger Manual? 0 Play Time 00:14:38 Cumulative 9.8 hours Start 2024.04.08 @ 18:17:57 End 2024.04.08 @ 18:31:19 Sessions 1 Manual Loads 0 Difficulty Rogue Special Mode None Game No. 14 Rogue 14 Adventurer 0 Explorer 0 Win Type - Total 0 Types 0/0/0/0/0/0/0/0/0 Lore% 15 Gallery% 20 Achievement% 20 Wizard Run 0 Options --------- Layout 1 ASCII 0 Keyboard 0 Movement Arrows Keybinds 0 Fullscreen 1 Font 24/Smallcaps Map View 50x35 Zoom Use 0% Tactical HUD 0 Map Filters NONE Filters NONE Steam 1 RUN: 3f681a71-e3d1-4189-a372-4a95a93e83ce